Workbook

Sheet AER only (hidden)
B1: Data in these columns used for data validation and database purposes.
B2: Date last modified:
B3: 14 April 2015 | C3: merged cell C46/47
B4: 17 April 2015 | C4: adjusted dms_RYE to automate based on dms_Model (NB: EB & CA refer to CRCP_y5)
B5: 14 May 2015 | C5: adapted this cover for use in CA & EB RINs
B9: dms_Model_List | C9: dms_Worksheet_List | E9: dms_RYE_List1 | F9: dms_RYE_List2
B10: CA | C10: CATEGORY ANALYSIS | E10: dms_RYE | F10: =CONCATENATE(LEFT(CRY, 2) &IF(CRY>"2009-10",,"") &RIGHT(CRY,2)) -> 
B11: CAM/Service change Backcast | C11: REGULATORY REPORTING STATEMENT | E11: dms_RYE | F11: =CONCATENATE(LEFT(CRCP_y5, 2) &IF(CRCP_y5>"2009-10",,"") &RIGHT(CRCP_y5,2)) -> 
B12: CPI | C12: CPI | E12: dms_RYE | F12: =CONCATENATE(LEFT(CRCP_y5, 2) &IF(CRCP_y5>"2009-10",,"") &RIGHT(CRCP_y5,2)) -> 
B13: EB | C13: ECONOMIC BENCHMARKING | E13: dms_RYE | F13: =CONCATENATE(LEFT(CRY, 2) &IF(CRY>"2009-10",,"") &RIGHT(CRY,2)) -> 
B14: PTRM | C14: POST TAX REVENUE MODEL | E14: FRCP | F14: =CONCATENATE(LEFT(FRCP_y5, 2) &IF(FRCP_y1>"2009-10",,"") &RIGHT(FRCP_y5,2)) -> 
B15: Reset | C15: REGULATORY REPORTING STATEMENT | E15: FRCP | F15: =CONCATENATE(LEFT(FRCP_y5, 2) &IF(FRCP_y1>"2009-10",,"") &RIGHT(FRCP_y5,2)) -> 
B16: RFM | C16: ROLL FORWARD MODEL | E16: CRCP | F16: =CONCATENATE(LEFT(CRCP_y5, 2) &IF(CRCP_y1>"2009-10",,"") &RIGHT(CRCP_y5,2)) -> 
B17: WACC | C17: WEIGHTED AVERAGE COST OF CAPITAL | E17: dms_RYE | F17: =CONCATENATE(LEFT(CRCP_y5, 2) &IF(CRCP_y5>"2009-10",,"") &RIGHT(CRCP_y5,2)) -> 
B20: dms_TradingName_List | C20: dms_TradingNameFull_List | D20: dms_ABN_List | E20: dms_State_List | F20: dms_Sector_List | G20: dms_Segment_List | H20: dms_FormControl | I20: dms_CRCPlength_List | J20: dms_FRCPlength_List | K20: dms_JurisdictionList | L20: dms_663_List | M20: dms_DeterminationRef_List
B21: ActewAGL Distribution | C21: ActewAGL Distribution | D21: 76670568688 | E21: ACT | F21: Electricity | G21: Distribution | H21: Revenue cap | I21: 5 | J21: 6 | K21: ACT | L21: 5 | M21: 2014-19 Distribution Determination
B22: ActewAGL Distribution (Tx Assets) | C22: ActewAGL Distribution (Tx Assets) | D22: 76670568688 | E22: ACT | F22: Electricity | G22: Distribution | H22: Revenue cap | I22: 5 | J22: 5 | K22: ACT | L22: 5 | M22: distribution determination
B23: AGN | C23: AGN | D23: 78551685 | E23: SA | F23: Gas | G23: Distribution | H23: Revenue cap | I23: 5 | J23: 5 | K23: SA | L23: 5 | M23: distribution determination
B24: Ausgrid | C24: Ausgrid | D24: 67505337385 | E24: NSW | F24: Electricity | G24: Distribution | H24: Revenue cap | I24: 5 | J24: 5 | K24: NSW | L24: 5 | M24: 2014-19 Distribution Determination
B25: Ausgrid (Tx Assets) | C25: Ausgrid (Tx Assets) | D25: 67505337385 | E25: NSW | F25: Electricity | G25: Distribution | H25: Revenue cap | I25: 5 | J25: 5 | K25: NSW | L25: 5 | M25: distribution determination
B26: AusNet (D) | C26: AusNet Services (D) | D26: 91064651118 | E26: Vic | F26: Electricity | G26: Distribution | H26: Revenue cap | I26: 5 | J26: 5 | K26: Vic | L26: 2 | M26: 2016-20 Distribution Determination
B27: AusNet (T) | C27: AusNet (T) | D27: 78079798173 | E27: Vic | F27: Electricity | G27: Transmission | H27: Revenue cap | I27: 5 | J27: 5 | K27: Vic | L27: 2 | M27: distribution determination
B28: Australian Distribution Co. | C28: Australian Distribution Co. | D28: 11222333444 | E28: - | F28: Electricity | G28: Distribution | H28: Revenue cap | I28: 5 | J28: 5 | K28: - | L28: 2 | M28: distribution determination
B29: Australian Transmission Co. | C29: Australian Transmission Co. | D29: 11222333444 | E29: - | F29: Electricity | G29: Transmission | H29: Revenue cap | I29: 5 | J29: 5 | K29: - | L29: 5 | M29: distribution determination
B30: CitiPower | C30: CitiPower | D30: 76064651056 | E30: Vic | F30: Electricity | G30: Distribution | H30: Revenue cap | I30: 5 | J30: 5 | K30: Vic | L30: 2 | M30: 2016-20 Distribution Determination
B31: Directlink | C31: Directlink | D31: 16779340889 | E31: NSW | F31: Electricity | G31: Transmission | H31: Revenue cap | I31: 10 | J31: 5 | K31: Qld | L31: 5 | M31: distribution determination
B32: ElectraNet | C32: ElectraNet | D32: 41094482416 | E32: SA | F32: Electricity | G32: Transmission | H32: Revenue cap | I32: 5 | J32: 5 | K32: SA | L32: 5 | M32: distribution determination
B33: Endeavour Energy | C33: Endeavour Energy | D33: 59253130878 | E33: NSW | F33: Electricity | G33: Distribution | H33: Revenue cap | I33: 5 | J33: 5 | K33: NSW | L33: 5 | M33: 2014-19 Distribution Determination
B34: Energex | C34: Energex | D34: 40078849055 | E34: Qld | F34: Electricity | G34: Distribution | H34: Revenue cap | I34: 5 | J34: 5 | K34: Qld | L34: 5 | M34: 2015-20 Distribution Determination
B35: Ergon Energy | C35: Ergon Energy | D35: 50087646062 | E35: Qld | F35: Electricity | G35: Distribution | H35: Revenue cap | I35: 5 | J35: 5 | K35: Qld | L35: 5 | M35: 2015-20 Distribution Determination
B36: Essential Energy | C36: Essential Energy | D36: 37428185226 | E36: NSW | F36: Electricity | G36: Distribution | H36: Revenue cap | I36: 5 | J36: 5 | K36: NSW | L36: 5 | M36: 2014-19 Distribution Determination
B37: Jemena Electricity | C37: Jemena Electricity | D37: 82064651083 | E37: Vic | F37: Electricity | G37: Distribution | H37: Revenue cap | I37: 5 | J37: 5 | K37: Vic | L37: 2 | M37: 2016-20 Distribution Determination
B38: Murraylink | C38: Murraylink | D38: 79181207909 | E38: NSW | F38: Electricity | G38: Transmission | H38: Revenue cap | I38: 5 | J38: 5 | K38: SA | L38: 5 | M38: distribution determination
B39: Powercor Australia | C39: Powercor Australia | D39: 89064651109 | E39: Vic | F39: Electricity | G39: Distribution | H39: Revenue cap | I39: 5 | J39: 5 | K39: Vic | L39: 2 | M39: 2016-20 Distribution Determination
B40: Powerlink | C40: Queensland Electricity Transmission Corporation Limited trading as Powerlink Queensland | D40: 82078849233 | E40: Qld | F40: Electricity | G40: Transmission | H40: Revenue cap | I40: 5 | J40: 5 | K40: Qld | L40: 5 | M40: distribution determination
B41: Qld,SA &ACT Gas Reset | C41: Qld,SA &ACT Gas Reset | D41: 22222222222 | E41: - | F41: Gas | G41: Distribution | H41: ? | I41: 5 | J41: 5 | K41: - | L41: x | M41: distribution determination
B42: SA Power Networks | C42: SA Power Networks | D42: 13332330749 | E42: SA | F42: Electricity | G42: Distribution | H42: Revenue cap | I42: 5 | J42: 5 | K42: SA | L42: 5 | M42: 2015-20 Distribution Determination
B43: TasNetworks (D) | C43: TasNetworks (D) | D43: 24167357299 | E43: Tas | F43: Electricity | G43: Distribution | H43: Revenue cap | I43: 5 | J43: 5 | K43: Tas | L43: 5 | M43: distribution determination
B44: TasNetworks (T) | C44: TasNetworks (T) | D44: 24167357299 | E44: Tas | F44: Electricity | G44: Transmission | H44: Revenue cap | I44: 5 | J44: 5 | K44: Tas | L44: 5 | M44: distribution determination
B45: TransGrid | C45: TransGrid | D45: 19622755774 | E45: NSW | F45: Electricity | G45: Transmission | H45: Revenue cap | I45: 5 | J45: 5 | K45: NSW | L45: 5 | M45: distribution determination
B46: United Energy | C46: United Energy | D46: 70064651029 | E46: Vic | F46: Electricity | G46: Distribution | H46: Revenue cap | I46: 5 | J46: 5 | K46: Vic | L46: 2 | M46: 2016-20 Distribution Determination
B47: Victorian DNSP Backcasting | C47: Victorian DNSP Backcasting | D47: 33333333666 | E47: Vic | F47: Electricity | G47: Distribution | H47: ? | I47: 5 | J47: 5 | K47: Vic | L47: x | M47: distribution determination
B48: Victorian DNSP Reset | C48: Victorian DNSP Reset | D48: 33333333333 | E48: Vic | F48: Electricity | G48: Distribution | H48: ? | I48: 5 | J48: 5 | K48: Vic | L48: x | M48: distribution determination
B53: dms_SourceList | C53: dms_FormControl_Choices | E53: dms_FRCPlength_Num_List | F53: dms_FinalYear_List
B54: After appeal | C54: Revenue cap | E54: 1 | F54: FRCP_y1
B55: Draft decision | C55: Revenue yield | E55: 2 | F55: FRCP_y2
B56: Final decision | C56: Weighted average price cap | E56: 3 | F56: FRCP_y3
B57: Pass through decision | E57: 4 | F57: FRCP_y4
B58: PTRM annual update | E58: 5 | F58: FRCP_y5
B59: PTRM interim update 1 | E59: 6 | F59: FRCP_y6
B60: PTRM interim update 2 | E60: 7 | F60: FRCP_y7
B61: PTRM interim update 3 | E61: 8 | F61: FRCP_y8
B62: PTRM interim update 4 | E62: 9 | F62: FRCP_y9
B63: Regulatory proposal | E63: 10 | F63: FRCP_y10
B64: Reporting
B65: Revised regulatory proposal
B66: RFM annual update
B67: WACC annual update
B71: Notes
B72: RFM - Base year is usually CRCP_y1 | C72: EG. Victorian 2016-20 - base year = 2011
B73: RFM - Form of Control Field is not relevant
B74: PTRM - capture base year input by NSP | C74: ='[Published version - PTRM - TNSP - version 3 - January 2015 - Appendix A.xlsm]PTRM input'!Q7

Sheet EBSS
B4: CPI
C5: 2006-07 | D5: 2007-08 | E5: 2008-09 | F5: 2009-10 | G5: 2010-11 | H5: 2011-12 | I5: 2012-13 | J5: 2013-14 | K5: 2014-15 | L5: 2015-16 | M5: 2016-17
B6: ABS CPI index Jun qtr (old base) | C6: 157.5 | D6: 164.6 | E6: 167 | F6: 172.1 | G6: 178.3
B7: ABS CPI index Jun qtr (rebased index) | F7: 95.8 | G7: 99.2 | H7: 100.4 | I7: 102.8 | J7: 105.9 | K7: 107.5 | L7: 110 | M7: 112.7
B8: Inflation rate (per cent) | D8: 0.04507936508 | E8: 0.01458080194 | F8: 0.03053892216 | G8: 0.03602556653 | H8: 0.01209677419 | I8: 0.02390438247 | J8: 0.03015564202 | K8: 0.01510859301 | L8: 0.02325581395 | M8: 0.02454545455
B9: Reconstructed cumulative index (2016-17=1) | C9: 0.7775296712 | D9: 0.8125802151 | E9: 0.8244282863 | F9: 0.8496054375 | G9: 0.8802129547 | H9: 0.8908606921 | I9: 0.9121561668 | J9: 0.9396628217 | K9: 0.9538598048 | L9: 0.9760425909 | M9: 1
B13: The carryover amounts that arise from applying the EBSS during the current regulatory control period
B15: Opex allowance applicable to EBSS (EBSS target)
C16: $m, Jun 2007 | G16: $m, Jun 2012 | M16: $m, Jun 2017
C17: Previous period | G17: Current regulatory control period | M17: Previous period | Q17: Current regulatory control period
C18: 2008-09 | D18: 2009-10 | E18: 2010-11 | F18: 2011-12 | G18: 2012-13 | H18: 2013-14 | I18: 2014-15 | J18: 2015-16 | K18: 2016-17 | M18: 2008-09 | N18: 2009-10 | O18: 2010-11 | P18: 2011-12 | Q18: 2012-13 | R18: 2013-14 | S18: 2014-15 | T18: 2015-16 | U18: 2016-17
B19: Total opex allowance | D19: 154.227 | E19: 147.589 | F19: 151.914 | G19: 177.936 | H19: 184.712 | I19: 189.464 | J19: 196.549 | K19: 202.292 | N19: 198.3551313 | O19: 189.8178365 | P19: 195.3803252 | Q19: 199.7349323 | R19: 207.3410598 | S19: 212.6752271 | T19: 220.6282102 | U19: 227.0747849
B20: Approved excludable costs - allowance | D20: 0 | E20: 0 | F20: 0 | G20: 0 | H20: 0 | I20: 0 | J20: 0 | K20: 0
B21: Equity raising costs | D21: 0 | E21: 0 | F21: 0 | G21: 0 | H21: 0 | I21: 0 | J21: 0 | K21: 0 | N21: 0 | O21: 0 | P21: 0
B22: Debt raising costs | D22: -2.26823 | E22: -2.3885 | F22: -2.5252 | G22: -3.496356373 | H22: -3.760880046 | I22: -3.948708258 | J22: -4.048357093 | K22: -4.183270595 | N22: -2.917226293 | O22: -3.071908492 | P22: -3.247721719 | Q22: -3.924694853 | R22: -4.22162531 | S22: -4.43246435 | T22: -4.54432116 | U22: -4.695762909
B23: Network support costs | D23: -22.15 | E23: -8.22 | F23: -8.3 | G23: 0 | H23: 0 | I23: 0 | J23: 0 | K23: 0 | N23: -28.48765883 | O23: -10.57194382 | P23: -10.67483378 | Q23: 0 | R23: 0 | S23: 0 | T23: 0 | U23: 0
B24: Insurance & Self Insurance | D24: -5.9503 | E24: -6.16182 | F24: -6.34835 | G24: -8.655056345 | H24: -9.183829361 | I24: -9.916478119 | J24: -10.44640643 | K24: -11.18024257 | N24: -7.652826922 | O24: -7.924867987 | P24: -8.1647688 | Q24: -9.715386953 | R24: -10.30893993 | S24: -11.13134546 | T24: -11.72619526 | U24: -12.54993365
B25: Capex Efficiencies | D25: -3.19478 | E25: -3.19478 | F25: -3.19478 | G25: 0 | H25: 0 | I25: 0 | J25: 0 | K25: 0
B26: Network growth adjustment | D26: 0 | E26: 0 | F26: 0 | G26: -0.6951117764 | H26: -1.738804399 | I26: -2.748208889 | J26: -3.645332374 | K26: -4.439440751 | N26: 0 | O26: 0 | P26: 0 | Q26: -0.7802698925 | R26: -1.951825257 | S26: -3.084891851 | T26: -4.091921898 | U26: -4.983316461
B27: Capitalisation policy changes | D27: 0 | E27: 0 | F27: 0 | G27: 0 | H27: 0 | I27: 0 | J27: 0 | K27: 0 | N27: 0 | O27: 0 | P27: 0 | Q27: 0 | R27: 0 | S27: 0 | T27: 0 | U27: 0
B28: Movements in provisions related to opex | D28: -2.274620613 | E28: -2.33963454 | F28: -2.449724791 | G28: -0.71449944 | H28: -0.75129961 | I28: -0.8199094085 | J28: -0.8227901275 | K28: -0.8542102505 | N28: -2.925445417 | O28: -3.009061425 | P28: -3.150651199 | Q28: -0.802032738 | R28: -0.8433412952 | S28: -0.9203564775 | T28: -0.9235901132 | U28: -0.9588595142
B29: Opex associated with pass throughs | D29: 0 | E29: 0 | F29: 0 | G29: 0 | H29: 0 | I29: 0 | J29: 0 | K29: 0 | N29: 0 | O29: 0 | P29: 0 | Q29: 0 | R29: 0 | S29: 0 | T29: 0 | U29: 0
B30: Other adjustments or exclusions required by the EBSS | D30: 0 | E30: 0 | F30: 0 | G30: 0 | H30: 0 | I30: 0 | J30: 0 | K30: 0 | N30: 0 | O30: 0 | P30: 0 | Q30: 0 | R30: 0 | S30: 0 | T30: 0 | U30: 0
B31: Forecast opex for EBSS purposes | D31: 118.3890694 | E31: 125.2842655 | F31: 129.0959452 | G31: 164.3749761 | H31: 169.2771866 | I31: 172.0306953 | J31: 177.586114 | K31: 181.6348358 | N31: 156.3719738 | O31: 165.2400548 | P31: 170.1423497 | Q31: 184.5125478 | R31: 190.015328 | S31: 193.106169 | T31: 199.3421817 | U31: 203.8869123
B33: Actual and estimated opex applicable to EBSS
C34: $m, Actual | M34: $m, Jun 2017
C35: Previous period | G35: Current regulatory control period | M35: Previous period | Q35: Current regulatory control period
C36: 2008-09 | D36: 2009-10 | E36: 2010-11 | F36: 2011-12 | G36: 2012-13 | H36: 2013-14 | I36: 2014-15 | J36: 2015-16 | K36: 2016-17 | M36: 2008-09 | N36: 2009-10 | O36: 2010-11 | P36: 2011-12 | Q36: 2012-13 | R36: 2013-14 | S36: 2014-15 | T36: 2015-16 | U36: 2016-17
B37: Total opex | D37: 151.884 | E37: 150.88 | F37: 160.384 | G37: 167.3775967 | H37: 181.016 | I37: 211.26 | J37: 216.540544 | N37: 181.4792361 | O37: 174.4733724 | P37: 181.1182712 | Q37: 185.6768801 | R37: 195.5223203 | S37: 223.1459348 | T37: 224.4205203
B38: Approved excludable costs | D38: 0 | E38: 0 | F38: 0 | G38: 0 | H38: 0 | I38: 0 | J38: 0
B39: Equity raising costs | D39: 0 | E39: 0 | F39: 0 | G39: 0 | H39: 0 | I39: 0 | J39: 0 | N39: 0 | O39: 0 | P39: 0
B40: Debt raising costs | D40: -0.32 | E40: -0.249 | F40: -0.265 | G40: -0.501 | H40: -0.5 | I40: -0.5 | J40: -1 | N40: -0.3823533456 | O40: -0.2879365704 | P40: -0.2992589153 | Q40: -0.5557740029 | R40: -0.5400691661 | S40: -0.5281310583 | T40: -1.036390304
B41: Network support costs | D41: -12.718 | E41: 0 | F41: 0 | G41: 0 | H41: 0 | I41: -2.644 | J41: -3.54 | N41: -15.19615578 | O41: 0 | P41: 0 | Q41: 0 | R41: 0 | S41: -2.792757036 | T41: -3.668821677
B42: Insurance & Self Insurance | D42: -6.713 | E42: -7.344 | F42: -7.596 | G42: -7.844 | H42: -8.153 | I42: -8.373 | J42: -8.597837 | N42: -8.021056279 | O42: -8.492394268 | P42: -8.57800272 | Q42: -8.701579398 | R42: -8.806367822 | S42: -8.844082702 | T42: -8.910714904
B43: AEMC Levy | D43: 0 | E43: 0 | F43: 0 | G43: 0 | H43: 0 | I43: -3.79 | J43: -4.1 | N43: 0 | O43: 0 | P43: 0 | Q43: 0 | R43: 0 | S43: -4.003233422 | T43: -4.249200247
B44: 500Kv Write Off | D44: 0 | E44: 0 | F44: 0 | G44: 0 | H44: 0 | I44: -12.054 | J44: 0 | N44: 0 | O44: 0 | P44: 0 | Q44: 0 | R44: 0 | S44: -12.73218355 | T44: 0
B45: Redundancy related costs | D45: 0 | E45: 0 | F45: 0 | G45: 0 | H45: 0 | I45: 0 | J45: -9.756455616 | N45: 0 | O45: 0 | P45: 0 | Q45: 0 | R45: 0 | S45: 0 | T45: -10.111496
B46: Network growth adjustment | D46: 0 | E46: 0 | F46: 0 | G46: 0 | H46: 0 | I46: 0 | J46: 0 | N46: 0 | O46: 0 | P46: 0 | Q46: 0 | R46: 0 | S46: 0 | T46: 0
B47: Capitalisation policy changes | D47: 0 | E47: 0 | F47: 0 | G47: 0 | H47: 0 | I47: 0 | J47: 0 | N47: 0 | O47: 0 | P47: 0 | Q47: 0 | R47: 0 | S47: 0 | T47: 0
B48: Movements in provisions related to opex | D48: 0.4667935462 | E48: -1.05484443 | F48: -1.941248962 | G48: -0.0135887346 | H48: -0.4509289263 | I48: 0.2598389549 | J48: 1.490399255 | N48: 0.5577502316 | O48: -1.219792318 | P48: -2.192211542 | Q48: -0.01507438208 | R48: -0.4870656183 | S48: 0.2744580444 | T48: 1.544635337
B49: Other adjustments or exclusions required by the EBSS | D49: 0 | E49: 0 | F49: 0 | G49: 0 | H49: 0 | I49: 0 | J49: 0 | N49: 0 | O49: 0 | P49: 0 | Q49: 0 | R49: 0 | S49: 0 | T49: 0
B50: Actual opex for EBSS purposes | D50: 132.5997935 | E50: 142.2321556 | F50: 150.581751 | G50: 159.019008 | H50: 171.9120711 | I50: 184.158839 | J50: 191.0366507 | N50: 158.4374209 | O50: 164.4732493 | P50: 170.0487981 | Q50: 176.4044523 | R50: 185.6888177 | S50: 194.520005 | T50: 197.9885325
J51: estimates | N51: base year
M52: Incremental gain ($m, 2021-22)
Q53: 5.949096845 | R53: -3.781585319 | S53: -5.740346317 | T53: 2.767485304
M55: Carryover
Q56: Current regulatory control period | V56: Forthcoming regulatory control period
Q57: $m, real June 2017
Q58: 2012-13 | R58: 2013-14 | S58: 2014-15 | T58: 2015-16 | U58: 2016-17 | V58: 2017-18 | W58: 2018-19 | X58: 2019-20 | Y58: 2020-21 | Z58: 2021-22 | AA58: Total
M59: 2012-13 | R59: 5.949096845 | S59: 5.949096845 | T59: 5.949096845 | U59: 5.949096845 | V59: 5.949096845
M60: 2013-14 | S60: -3.781585319 | T60: -3.781585319 | U60: -3.781585319 | V60: -3.781585319 | W60: -3.781585319
M61: 2014-15 | T61: -5.740346317 | U61: -5.740346317 | V61: -5.740346317 | W61: -5.740346317 | X61: -5.740346317
M62: 2015-16 | U62: 2.767485304 | V62: 2.767485304 | W62: 2.767485304 | X62: 2.767485304 | Y62: 2.767485304
M63: 2016-17 | V63: 0 | W63: 0 | X63: 0 | Y63: 0 | Z63: 0
M64: Total Carryover Amount | V64: -0.8053494875 | W64: -6.754446332 | X64: -2.972861013 | Y64: 2.767485304 | Z64: 0 | AA64: -7.765171529
M66: PTRM inputs | V66: -0.8053494875 | W66: -6.754446332 | X66: -2.972861013 | Y66: 2.767485304 | Z66: 0 | AA66: -7.765171529
Z67: =+Z66*1000000 -> 0
B68: Proposed forecast opex for the EBSS for the forthcoming regulatory control period
C69: Forthcoming regulatory control period
C70: $m, real June 2017
C71: 2017-18 | D71: 2018-19 | E71: 2019-20 | F71: 2020-21 | G71: 2021-22
B72: Forecast opex | C72: 196.8944993 | D72: 196.0367214 | E72: 195.1135382 | F72: 194.3970058 | G72: 194.2725143
B73: Less excluded costs
B74: Insurance Premiums | C74: 7.606997063 | D74: 7.786258478 | E74: 7.942616764 | F74: 8.094781133 | G74: 8.286455644
B75: Self-Insurance | C75: 1.485684916 | D75: 1.484743913 | E75: 1.47787011 | F75: 1.470405414 | G75: 1.468948661
B76: AEMC Levy | C76: 4.2 | D76: 4.2 | E76: 4.2 | F76: 4.2 | G76: 4.2
B77: Debt Raising | C77: 3.600106959 | D77: 3.568597603 | E77: 3.529296207 | F77: 3.482200555 | G77: 3.432423959
B78: Redundancy related costs
B84: Adjusted forecast opex | C84: 180.0017104 | D84: 178.9971214 | E84: 177.9637552 | F84: 177.1496187 | G84: 176.8846861

Sheet 7.5 EBSS AER (hidden)
B1: REGULATORY REPORTING STATEMENT
B2: =INDEX(dms_TradingNameFull_List,MATCH(dms_TradingName,dms_TradingName_List)) -> 
B3: =CONCATENATE(FRCP_y1," to ",dms_FRCP_FinalYear_Num) -> 
B4: 7.5 EBSS
B7: Instructions
B8: Powerlink is required to populate all input cells (yellow) in tableS 7.5.1 and 7.5.2 presented below.
B9: Efficiency gains are calculated using the formulae below. Adjusted target and actual amounts are used to calculate the carry-over amounts. We will calculate the efficiency gain in 2012–13 (year 6) as follows: E6 = (F6 – A6) – (F5 – A5) + (F3 – A3) where F6 is the forecast opex we approved for year 6 (2012-13), and A6 is the actual opex incurred for year 6, and so on. The formula references year 3 (2009-10) because it is the base year used to forecast opex.
B12: SELECT BASE YEAR USED TO FORECAST OPEX FOR 2017-22 | D12: 2014-15
B16: CPI
C17: 2006-07 | D17: 2007-08 | E17: 2008-09 | F17: 2009-10 | G17: 2010-11 | H17: 2011-12 | I17: 2012-13 | J17: 2013-14 | K17: 2014-15 | L17: 2015-16 | M17: 2016-17
B18: ABS CPI index Jun qtr (old base) | C18: 157.5 | D18: 164.6 | E18: 167 | F18: 172.1 | G18: 178.3
B19: ABS CPI index Jun qtr (rebased index) | F19: 95.8 | G19: 99.2 | H19: 100.4 | I19: 102.8 | J19: 105.9 | K19: 107.5 | L19: 109.65 | M19: 112.39125
B20: Inflation rate (per cent) | D20: =D18/C18-1 -> 0.04507936508 | E20: 0.01458080194 | F20: 0.03053892216 | G20: =G18/F18-1 -> 0.03602556653 | H20: =H19/G19-1 -> 0.01209677419 | I20: 0.02390438247 | J20: =J19/I19-1 -> 0.03015564202 | K20: =K19/J19-1 -> 0.01510859301 | L20: 0.0235 | M20: 0.0245
B21: Reconstructed cumulative index (2016-17=1) | C21: =D21/(1+D20) -> 0.7773786575 | D21: 0.8124223938 | E21: 0.8242681638 | F21: 0.8494404251 | G21: 0.8800419976 | H21: 0.8906876669 | I21: 0.9119790056 | J21: 0.939480318 | K21: 0.9536745438 | L21: 0.9760858956 | M21: 1
B25: 7.5.1 - The carryover amounts that arise from applying the EBSS during the current regulatory control period
B27: 7.5.1.1 - Opex allowance applicable to EBSS (EBSS target)
C28: $m, Jun 2007 | G28: $m, Jun 2012 | M28: $m, Jun 2017
C29: Previous period | G29: Current regulatory control period | M29: Previous period | Q29: Current regulatory control period
C30: =PRCP_y2 ->  | D30: =PRCP_y3 ->  | E30: =PRCP_y4 ->  | F30: =PRCP_y5 ->  | G30: =CRCP_y1 ->  | H30: =CRCP_y2 ->  | I30: =CRCP_y3 ->  | J30: =CRCP_y4 ->  | K30: =CRCP_y5 ->  | M30: =PRCP_y2 ->  | N30: =PRCP_y3 ->  | O30: =PRCP_y4 ->  | P30: =PRCP_y5 ->  | Q30: =CRCP_y1 ->  | R30: =CRCP_y2 ->  | S30: =CRCP_y3 ->  | T30: =CRCP_y4 ->  | U30: =CRCP_y5 -> 
B31: Total opex allowance | D31: 154227 | E31: 147589 | F31: 151914 | G31: 177936 | H31: 184712 | I31: 189464 | J31: 196549 | K31: 202292 | N31: =+D31/$C$21 -> 198393.6638 | O31: 189854.7106 | P31: 195418.2798 | Q31: =+G31/$H$21 -> 199773.7328 | R31: =+H31/$H$21 -> 207381.3379 | S31: 212716.5414 | T31: 220671.0694 | U31: 227118.8965
B32: Approved excludable costs - allowance
B33: Equity raising costs | N33: =+D33/$C$21 -> 0 | O33: =+E33/$C$21 -> 0 | P33: =+F33/$C$21 -> 0
B34: Debt raising costs | D34: -2268.23 | E34: -2388.5 | F34: -2525.2 | G34: -3496.356373 | H34: -3760.880046 | I34: -3948.708258 | J34: -4048.357093 | K34: -4183.270595 | N34: =+D34/$C$21 -> -2917.792993 | O34: =+E34/$C$21 -> -3072.505242 | P34: =+F34/$C$21 -> -3248.352622 | Q34: =+G34/$H$21 -> -3925.457265 | R34: =+H34/$H$21 -> -4222.445404 | S34: =+I34/$H$21 -> -4433.325401 | T34: =+J34/$H$21 -> -4545.20394 | U34: =+K34/$H$21 -> -4696.675109
B35: Network support costs | D35: -22150 | E35: -8220 | F35: -8300 | N35: -28493.19284 | O35: -10573.99753 | P35: -10676.90748 | Q35: 0 | R35: 0 | S35: 0 | T35: 0 | U35: 0
B36: Insurance & Self Insurance | D36: -5950.3 | E36: -6161.82 | F36: -6348.35 | G36: -8655.056345 | H36: -9183.829361 | I36: -9916.478119 | J36: -10446.40643 | K36: -11180.24257 | N36: -7654.313561 | O36: -7926.407473 | P36: -8166.354889 | Q36: -9717.274266 | R36: -10310.94255 | S36: -11133.50784 | T36: -11728.4732 | U36: -12552.3716
B37: Capex Efficiencies | D37: -3194.78 | E37: -3194.78 | F37: -3194.78
B38: Network growth adjustment | G38: -695.1117764 | H38: -1738.804399 | I38: -2748.208889 | J38: -3674.246894 | K38: -4352.829785 | N38: 0 | O38: 0 | P38: 0 | Q38: -780.4214679 | R38: -1952.204419 | S38: -3085.491122 | T38: -4125.179937 | U38: -4887.043963
B39: Capitalisation policy changes | N39: 0 | O39: 0 | P39: 0 | Q39: 0 | R39: 0 | S39: 0 | T39: 0 | U39: 0
B40: Movements in provisions related to opex | D40: -2274.620613 | E40: -2339.63454 | F40: -2449.724791 | G40: -714.49944 | H40: -751.29961 | I40: -819.9094085 | J40: -822.7901275 | K40: -854.2102505 | N40: -2926.013714 | O40: -3009.645966 | P40: -3151.263246 | Q40: -802.188541 | R40: -843.5051229 | S40: -920.5352661 | T40: -923.76953 | U40: -959.0457825
B41: Opex associated with pass throughs | N41: 0 | O41: 0 | P41: 0 | Q41: 0 | R41: 0 | S41: 0 | T41: 0 | U41: 0
B42: Other adjustments or exclusions required by the EBSS | N42: 0 | O42: 0 | P42: 0 | Q42: 0 | R42: 0 | S42: 0 | T42: 0 | U42: 0
B43: Forecast opex for EBSS purposes | D43: =(D31+SUM(D33:D42)) -> 118389.0694 | E43: 125284.2655 | F43: 129095.9452 | G43: 164374.9761 | H43: 169277.1866 | I43: 172030.6953 | J43: 177557.1995 | K43: 181721.4468 | N43: =+SUM(N31:N42) -> 156402.3507 | O43: 165272.1543 | P43: 170175.4016 | Q43: 184548.3913 | R43: 190052.2404 | S43: 193143.6818 | T43: 199348.4428 | U43: 204023.76
B45: 7.5.1.2 - Actual and estimated opex applicable to EBSS
C46: $m, Actual | M46: $m, Jun 2017
C47: Previous period | G47: Current regulatory control period | M47: Previous period | Q47: Current regulatory control period
C48: =PRCP_y2 ->  | D48: =PRCP_y3 ->  | E48: =PRCP_y4 ->  | F48: =PRCP_y5 ->  | G48: =CRCP_y1 ->  | H48: =CRCP_y2 ->  | I48: =CRCP_y3 ->  | J48: =CRCP_y4 ->  | K48: =CRCP_y5 ->  | M48: =PRCP_y2 ->  | N48: =PRCP_y3 ->  | O48: =PRCP_y4 ->  | P48: =PRCP_y5 ->  | Q48: =CRCP_y1 ->  | R48: =CRCP_y2 ->  | S48: =CRCP_y3 ->  | T48: =CRCP_y4 ->  | U48: =CRCP_y5 -> 
B49: Total opex | D49: 151884 | E49: 150880 | F49: 160384 | G49: 167377.5967 | H49: 181016 | I49: 211260 | J49: 214028.2476 | N49: =+D49/F$21*(1+F$20)^0.5 -> 181514.4903 | O49: 174507.2657 | P49: 181153.4553 | Q49: =+G49/I$21*(1+I$20)^0.5 -> 185712.9497 | R49: 195560.3025 | S49: 223189.2831 | T49: 221833.4236
B50: Approved excludable costs
B51: =B33 -> Equity raising costs | N51: =+D51/F$21*(1+F$20)^0.5 -> 0 | O51: =+E51/G$21*(1+G$20)^0.5 -> 0 | P51: =+F51/H$21*(1+H$20)^0.5 -> 0
B52: =B34 -> Debt raising costs | D52: -320 | E52: -249 | F52: -265 | G52: -501 | H52: -500 | I52: -500 | J52: -1000 | N52: =+D52/F$21*(1+F$20)^0.5 -> -382.4276217 | O52: =+E52/G$21*(1+G$20)^0.5 -> -287.992505 | P52: =+F52/H$21*(1+H$20)^0.5 -> -299.3170494 | Q52: =+G52/I$21*(1+I$20)^0.5 -> -555.8819677 | R52: =+H52/J$21*(1+J$20)^0.5 -> -540.17408 | S52: =+I52/K$21*(1+K$20)^0.5 -> -528.2336531 | T52: =+J52/L$21*(1+L$20)^0.5 -> -1036.467971
B53: =B35 -> Network support costs | D53: -12718 | I53: -2644 | J53: -3540 | N53: -15199.10779 | O53: 0 | P53: 0 | Q53: 0 | R53: 0 | S53: -2793.299558 | T53: -3669.096619
B54: =B36 -> Insurance & Self Insurance | D54: -6713 | E54: -7344 | F54: -7596 | G54: -7844 | H54: -8153 | I54: -8373 | J54: -9544 | N54: -8022.614451 | O54: -8494.044002 | P54: -8579.669085 | Q54: -8703.269769 | R54: -8808.078549 | S54: -8845.800756 | T54: -9892.05032
B55: =B37 -> Capex Efficiencies | N55: 0 | O55: 0 | P55: 0 | Q55: 0 | R55: 0 | S55: 0 | T55: 0
B56: =B38 -> Network growth adjustment | N56: 0 | O56: 0 | P56: 0 | Q56: 0 | R56: 0 | S56: 0 | T56: 0
B57: Capitalisation policy changes | N57: 0 | O57: 0 | P57: 0 | Q57: 0 | R57: 0 | S57: 0 | T57: 0
B58: Movements in provisions related to opex | D58: 540.9158774 | E58: -1086.166017 | F58: -1913 | G58: -14 | H58: -454 | I58: 260 | J58: 1490 | N58: 646.4411641 | O58: -1256.255711 | P58: -2160.730247 | Q58: -15.53362784 | R58: -490.4780646 | S58: 274.6814996 | T58: 1544.337277
B59: =B42 -> Other adjustments or exclusions required by the EBSS | N59: 0 | O59: 0 | P59: 0 | Q59: 0 | R59: 0 | S59: 0 | T59: 0
B60: Actual opex for EBSS purposes | D60: =D49+SUM(D51:D59) -> 132673.9159 | E60: 142200.834 | F60: 150610 | G60: 159018.5967 | H60: 171909 | I60: 200003 | J60: 201434.2476 | N60: =N49+SUM(N51:N59) -> 158556.7816 | O60: =O49+SUM(O51:O59) -> 164468.9734 | P60: =P49+SUM(P51:P59) -> 170113.7389 | Q60: =Q49+SUM(Q51:Q59) -> 176438.2643 | R60: =R49+SUM(R51:R59) -> 185721.5718 | S60: 211296.6307 | T60: 208780.146
J61: estimates | N61: base year | S61: base year
M62: =CONCATENATE("Incremental gain ($m, ",dms_FRCP_FinalYear_Num,")") -> 
Q63: =(Q43-Q60)-(P43-P60)+(N43-N60) -> 5894.033405 | R63: =(R43-R60)-(Q43-Q60) -> -3779.458419 | S63: =(S43-S60)-(R43-R60) -> -22483.61741 | T63: 8721.245687
M65: Carryover
Q66: Current regulatory control period | V66: Forthcoming regulatory control period
Q67: =CONCATENATE("$m, real ",dms_DollarReal) -> 
Q68: =CRCP_y1 ->  | R68: =CRCP_y2 ->  | S68: =CRCP_y3 ->  | T68: =CRCP_y4 ->  | U68: =CRCP_y5 ->  | V68: =FRCP_y1 ->  | W68: =FRCP_y2 ->  | X68: =FRCP_y3 ->  | Y68: =FRCP_y4 ->  | Z68: =FRCP_y5 ->  | AA68: Total
M69: =CRCP_y1 ->  | R69: =$Q$63 -> 5894.033405 | S69: =$Q$63 -> 5894.033405 | T69: 5894.033405 | U69: 5894.033405 | V69: =$Q$63 -> 5894.033405
M70: =CRCP_y2 ->  | S70: =$R$63 -> -3779.458419 | T70: =$R$63 -> -3779.458419 | U70: -3779.458419 | V70: -3779.458419 | W70: =$R$63 -> -3779.458419
M71: =CRCP_y3 ->  | T71: =$S$63 -> -22483.61741 | U71: =$S$63 -> -22483.61741 | V71: =$S$63 -> -22483.61741 | W71: -22483.61741 | X71: =$S$63 -> -22483.61741
M72: =CRCP_y4 ->  | U72: =$T$63 -> 8721.245687 | V72: =$T$63 -> 8721.245687 | W72: 8721.245687 | X72: 8721.245687 | Y72: =$T$63 -> 8721.245687
M73: =CRCP_y5 ->  | V73: =$U$63 -> 0 | W73: =$U$63 -> 0 | X73: 0 | Y73: 0 | Z73: =$U$63 -> 0
M74: =CONCATENATE("Total Carryover Amount") -> Total Carryover Amount | V74: =+SUM(V69:V73) -> -11647.79673 | W74: =+SUM(W70:W73) -> -17541.83014 | X74: =+SUM(X71:X73) -> -13762.37172 | Y74: =+SUM(Y72:Y73) -> 8721.245687 | Z74: =+SUM(Z73) -> 0 | AA74: =SUM(V74:Z74) -> -34230.7529
M76: =CONCATENATE("PTRM inputs") -> PTRM inputs | V76: =V74 -> -11647.79673 | W76: =W74 -> -17541.83014 | X76: =X74 -> -13762.37172 | Y76: =Y74 -> 8721.245687 | Z76: =Z74 -> 0 | AA76: =SUM(V76:Z76) -> -34230.7529
B78: 7.5.2 - Proposed forecast opex for the EBSS for the forthcoming regulatory control period
C79: Forthcoming regulatory control period
C80: =CONCATENATE("$m, real ",dms_DollarReal) -> 
C81: =FRCP_y1 ->  | D81: =FRCP_y2 ->  | E81: =FRCP_y3 ->  | F81: =FRCP_y4 ->  | G81: =FRCP_y5 -> 
B82: Forecast opex
B83: Less excluded costs
B84: < Enter category proposed for exclusion > eg. Debt raising costs | C84: 0 | D84: 0 | E84: 0 | F84: 0 | G84: 0
C85: 0 | D85: 0 | E85: 0 | F85: 0 | G85: 0
C86: 0 | D86: 0 | E86: 0 | F86: 0 | G86: 0
C87: 0 | D87: 0 | E87: 0 | F87: 0 | G87: 0
C88: 0 | D88: 0 | E88: 0 | F88: 0 | G88: 0
C89: 0 | D89: 0 | E89: 0 | F89: 0 | G89: 0
C90: 0 | D90: 0 | E90: 0 | F90: 0 | G90: 0
C91: 0 | D91: 0 | E91: 0 | F91: 0 | G91: 0
C92: 0 | D92: 0 | E92: 0 | F92: 0 | G92: 0
C93: 0 | D93: 0 | E93: 0 | F93: 0 | G93: 0
B94: Adjusted forecast opex | C94: =+C82-SUM(C84:C93) -> 0 | D94: 0 | E94: 0 | F94: 0 | G94: 0

Sheet 7.5 EBSS PQ (hidden)
B1: REGULATORY REPORTING STATEMENT
B2: =INDEX(dms_TradingNameFull_List,MATCH(dms_TradingName,dms_TradingName_List)) -> 
B3: =CONCATENATE(FRCP_y1," to ",dms_FRCP_FinalYear_Num) -> 
B4: 7.5 EBSS
B7: Instructions
B8: Powerlink is required to populate all input cells (yellow) in tableS 7.5.1 and 7.5.2 presented below.
B9: Efficiency gains are calculated using the formulae below. Adjusted target and actual amounts are used to calculate the carry-over amounts. We will calculate the efficiency gain in 2012–13 (year 6) as follows: E6 = (F6 – A6) – (F5 – A5) + (F3 – A3) where F6 is the forecast opex we approved for year 6 (2012-13), and A6 is the actual opex incurred for year 6, and so on. The formula references year 3 (2009-10) because it is the base year used to forecast opex.
B12: SELECT BASE YEAR USED TO FORECAST OPEX FOR 2017-22 | D12: 2014-15
B16: CPI
C17: 2006-07 | D17: 2007-08 | E17: 2008-09 | F17: 2009-10 | G17: 2010-11 | H17: 2011-12 | I17: 2012-13 | J17: 2013-14 | K17: 2014-15 | L17: 2015-16 | M17: 2016-17
B18: ABS CPI index Mar qtr (old base) | C18: =+#REF! ->  | D18: =+#REF! ->  | E18: =+#REF! ->  | F18: =+#REF! ->  | G18: =+#REF! ->  | H18: =+#REF! -> 
B19: ABS CPI index Mar qtr (rebased index) | C19: =+#REF! ->  | D19: =+#REF! ->  | E19: =+#REF! ->  | F19: =+#REF! ->  | G19: =+#REF! ->  | H19: =+#REF! ->  | I19: =+#REF! ->  | J19: =+#REF! ->  | K19: =+#REF! ->  | L19: =+#REF! ->  | M19: =+#REF! -> 
B20: ABS CPI index Sept qtr (Old base) | C20: =+#REF! ->  | D20: =+#REF! ->  | E20: =+#REF! ->  | F20: =+#REF! ->  | G20: =+#REF! -> 
B21: ABS CPI index Sept qtr (rebased index) | C21: =+#REF! ->  | D21: =+#REF! ->  | E21: =+#REF! ->  | F21: =+#REF! ->  | G21: =+#REF! ->  | H21: =+#REF! ->  | I21: =+#REF! ->  | J21: =+#REF! ->  | K21: =+#REF! ->  | L21: =+#REF! ->  | M21: =+#REF! -> 
B22: Inflation rate (per cent) | D22: =D18/C18-1 ->  | E22: =E18/D18-1 ->  | F22: =F18/E18-1 ->  | G22: =G18/F18-1 ->  | H22: =H19/G19-1 ->  | I22: =I19/H19-1 ->  | J22: =J19/I19-1 ->  | K22: =K19/J19-1 ->  | L22: 0.0235 | M22: 0.0245
B23: Reconstructed cumulative index (2016-17=1) | C23: =D23/(1+D22) ->  | K23: 0.9536745438 | L23: 0.9760858956 | M23: 1
B27: 7.5.1 - The carryover amounts that arise from applying the EBSS during the current regulatory control period
B29: 7.5.1.1 - Opex allowance applicable to EBSS (EBSS target)
C30: $m, Jun 2007 | G30: $m, Jun 2012 | M30: $m, Jun 2017
C31: Previous period | G31: Current regulatory control period | M31: Previous period | Q31: Current regulatory control period
C32: =PRCP_y2 ->  | D32: =PRCP_y3 ->  | E32: =PRCP_y4 ->  | F32: =PRCP_y5 ->  | G32: =CRCP_y1 ->  | H32: =CRCP_y2 ->  | I32: =CRCP_y3 ->  | J32: =CRCP_y4 ->  | K32: =CRCP_y5 ->  | M32: =PRCP_y2 ->  | N32: =PRCP_y3 ->  | O32: =PRCP_y4 ->  | P32: =PRCP_y5 ->  | Q32: =CRCP_y1 ->  | R32: =CRCP_y2 ->  | S32: =CRCP_y3 ->  | T32: =CRCP_y4 ->  | U32: =CRCP_y5 -> 
B33: Total opex allowance | D33: 154227 | E33: 147589 | F33: 151914 | G33: 177936 | H33: 184712 | I33: 189464 | J33: 196549 | K33: 202292 | N33: =+D33/$C$19*$M$19 ->  | O33: =+E33/$C$19*$M$19 ->  | Q33: =+G33/$H$23 ->  | R33: =+H33/$H$23 -> 
B34: Approved excludable costs - allowance
B35: Equity raising costs
B36: Debt raising costs | D36: -2268.23 | E36: -2388.5 | F36: -2525.2 | G36: -3496.356373 | H36: -3760.880046 | I36: -3948.708258 | J36: -4048.357093 | K36: -4183.270595 | N36: =+D36/$C$19*$M$19 ->  | O36: =+E36/$C$19*$M$19 ->  | P36: =+F36/$C$19*$M$19 ->  | Q36: =+G36/$H$23 -> 
B37: Network support costs | D37: -22150 | E37: -8220 | F37: -8300
B38: Insurance & Self Insurance | D38: -5950.3 | E38: -6161.82 | F38: -6348.35 | G38: -8655.056345 | H38: -9183.829361 | I38: -9916.478119 | J38: -10446.40643 | K38: -11180.24257
B39: Capex Efficiencies | D39: -3194.78 | E39: -3194.78 | F39: -3194.78
B40: Network growth adjustment | G40: -695.1117764 | H40: -1738.804399 | I40: -2748.208889 | J40: -3674.246894 | K40: -4352.829785
B41: Capitalisation policy changes
B42: Movements in provisions related to opex | D42: -2274.620613 | E42: -2339.63454 | F42: -2449.724791 | G42: -714.49944 | H42: -751.29961 | I42: -819.9094085 | J42: -822.7901275 | K42: -854.2102505
B43: Opex associated with pass throughs
B44: Other adjustments or exclusions required by the EBSS
B45: Forecast opex for EBSS purposes | D45: =(D33+SUM(D35:D44)) -> 118389.0694 | E45: 125284.2655 | F45: 129095.9452 | G45: 164374.9761 | H45: 169277.1866 | I45: 172030.6953 | J45: 177557.1995 | K45: 181721.4468 | N45: =+SUM(N33:N44) -> 
E46: -1
B47: 7.5.1.2 - Actual and estimated opex applicable to EBSS
C48: $m, Actual | M48: $m, Jun 2017
C49: Previous period | G49: Current regulatory control period | M49: Previous period | Q49: Current regulatory control period
C50: =PRCP_y2 ->  | D50: =PRCP_y3 ->  | E50: =PRCP_y4 ->  | F50: =PRCP_y5 ->  | G50: =CRCP_y1 ->  | H50: =CRCP_y2 ->  | I50: =CRCP_y3 ->  | J50: =CRCP_y4 ->  | K50: =CRCP_y5 ->  | M50: =PRCP_y2 ->  | N50: =PRCP_y3 ->  | O50: =PRCP_y4 ->  | P50: =PRCP_y5 ->  | Q50: =CRCP_y1 ->  | R50: =CRCP_y2 ->  | S50: =CRCP_y3 ->  | T50: =CRCP_y4 ->  | U50: =CRCP_y5 -> 
B51: Total opex | D51: 151884 | E51: 150880 | F51: 160384 | G51: 167377.5967 | H51: 181016 | I51: 211260 | J51: 214028.2476 | N51: =+D51/F$21*$M$19 ->  | O51: =+E51/G$21*$M$19 ->  | Q51: =+G51/I$21*$M$19 -> 
B52: Approved excludable costs
B53: =B35 -> Equity raising costs
B54: =B36 -> Debt raising costs | D54: -320 | E54: -249 | F54: -265 | G54: -501 | H54: -500 | I54: -500 | J54: -1000 | N54: =+D54/F$21*$M$19 ->  | O54: =+E54/G$21*$M$19 ->  | P54: =+F54/H$21*$M$19 ->  | Q54: =+G54/I$21*$M$19 ->  | R54: =+H54/J$21*$M$19 ->  | S54: =+I54/K$21*$M$19 ->  | T54: =+J54/L$21*$M$19 -> 
B55: =B37 -> Network support costs | D55: -12718 | I55: -2644 | J55: -3540
B56: =B38 -> Insurance & Self Insurance | D56: -6713 | E56: -7344 | F56: -7596 | G56: -7844 | H56: -8153 | I56: -8373 | J56: -9544
B57: =+B39 -> Capex Efficiencies
B58: =B40 -> Network growth adjustment
B59: Capitalisation policy changes
B60: Movements in provisions related to opex | D60: 540.9158774 | E60: -1086.166017 | F60: -1913 | G60: -14 | H60: -454 | I60: 260 | J60: 1490
B61: =B44 -> Other adjustments or exclusions required by the EBSS | N61: =+D61/D$21*$M$19 -> 
B62: Actual opex for EBSS purposes | D62: =D51+SUM(D53:D61) -> 132673.9159 | E62: 142200.834 | F62: 150610 | G62: 159018.5967 | H62: 171909 | I62: 200003 | J62: 201434.2476 | N62: =N51+SUM(N53:N61) ->  | O62: =O51+SUM(O53:O61) ->  | P62: =P51+SUM(P53:P61) ->  | Q62: =Q51+SUM(Q53:Q61) ->  | R62: =R51+SUM(R53:R61) -> 
J63: estimates | N63: base year | S63: base year
M64: =CONCATENATE("Incremental gain ($m, ",dms_FRCP_FinalYear_Num,")") -> 
Q65: =+(Q45-Q62)-(P45-P62)+(O45-O62) ->  | R65: =(R45-R62)-(Q45-Q62) ->  | S65: =(S45-S62)-(R45-R62) -> 
M67: Carryover
Q68: Current regulatory control period | V68: Forthcoming regulatory control period
Q69: =CONCATENATE("$m, real ",dms_DollarReal) -> 
Q70: =CRCP_y1 ->  | R70: =CRCP_y2 ->  | S70: =CRCP_y3 ->  | T70: =CRCP_y4 ->  | U70: =CRCP_y5 ->  | V70: =FRCP_y1 ->  | W70: =FRCP_y2 ->  | X70: =FRCP_y3 ->  | Y70: =FRCP_y4 ->  | Z70: =FRCP_y5 ->  | AA70: Total
M71: =CRCP_y1 ->  | R71: =$Q$65 ->  | S71: =$Q$65 ->  | V71: =$Q$65 -> 
M72: =CRCP_y2 ->  | S72: =$R$65 ->  | T72: =$R$65 ->  | W72: =$R$65 -> 
M73: =CRCP_y3 ->  | T73: =$S$65 ->  | U73: =$S$65 ->  | V73: =$S$65 ->  | X73: =$S$65 -> 
M74: =CRCP_y4 ->  | U74: =$T$65 ->  | V74: =$T$65 ->  | Y74: =$T$65 -> 
M75: =CRCP_y5 ->  | V75: =$U$65 -> 0 | W75: =$U$65 -> 0 | X75: 0 | Y75: 0 | Z75: =$U$65 -> 0
M76: =CONCATENATE("Total Carryover Amount") -> Total Carryover Amount | V76: =+SUM(V71:V75) ->  | W76: =+SUM(W72:W75) ->  | X76: =+SUM(X73:X75) ->  | Y76: =+SUM(Y74:Y75) ->  | Z76: =+SUM(Z75) -> 0 | AA76: =SUM(V76:Z76) -> 
M78: =CONCATENATE("PTRM inputs") -> PTRM inputs | V78: =V76 ->  | W78: =W76 ->  | X78: =X76 ->  | Y78: =Y76 ->  | Z78: =Z76 -> 0 | AA78: =SUM(V78:Z78) -> 
B80: 7.5.2 - Proposed forecast opex for the EBSS for the forthcoming regulatory control period
C81: Forthcoming regulatory control period
C82: =CONCATENATE("$m, real ",dms_DollarReal) -> 
C83: =FRCP_y1 ->  | D83: =FRCP_y2 ->  | E83: =FRCP_y3 ->  | F83: =FRCP_y4 ->  | G83: =FRCP_y5 -> 
B84: Forecast opex
B85: Less excluded costs
B86: < Enter category proposed for exclusion > eg. Debt raising costs | C86: 0 | D86: 0 | E86: 0 | F86: 0 | G86: 0
C87: 0 | D87: 0 | E87: 0 | F87: 0 | G87: 0
C88: 0 | D88: 0 | E88: 0 | F88: 0 | G88: 0
C89: 0 | D89: 0 | E89: 0 | F89: 0 | G89: 0
C90: 0 | D90: 0 | E90: 0 | F90: 0 | G90: 0
C91: 0 | D91: 0 | E91: 0 | F91: 0 | G91: 0
C92: 0 | D92: 0 | E92: 0 | F92: 0 | G92: 0
C93: 0 | D93: 0 | E93: 0 | F93: 0 | G93: 0
C94: 0 | D94: 0 | E94: 0 | F94: 0 | G94: 0
C95: 0 | D95: 0 | E95: 0 | F95: 0 | G95: 0
B96: Adjusted forecast opex | C96: =+C84-SUM(C86:C95) -> 0 | D96: 0 | E96: 0 | F96: 0 | G96: 0

Sheet 7.5 EBSS PQ Version 2 (hidden)
B1: REGULATORY REPORTING STATEMENT
B2: =INDEX(dms_TradingNameFull_List,MATCH(dms_TradingName,dms_TradingName_List)) -> 
B3: =CONCATENATE(FRCP_y1," to ",dms_FRCP_FinalYear_Num) -> 
B4: 7.5 EBSS
B7: Instructions
B8: Powerlink is required to populate all input cells (yellow) in tableS 7.5.1 and 7.5.2 presented below.
B9: Efficiency gains are calculated using the formulae below. Adjusted target and actual amounts are used to calculate the carry-over amounts. We will calculate the efficiency gain in 2012–13 (year 6) as follows: E6 = (F6 – A6) – (F5 – A5) + (F3 – A3) where F6 is the forecast opex we approved for year 6 (2012-13), and A6 is the actual opex incurred for year 6, and so on. The formula references year 3 (2009-10) because it is the base year used to forecast opex.
B12: SELECT BASE YEAR USED TO FORECAST OPEX FOR 2017-22 | D12: 2014-15
B16: CPI
C17: 2006-07 | D17: 2007-08 | E17: 2008-09 | F17: 2009-10 | G17: 2010-11 | H17: 2011-12 | I17: 2012-13 | J17: 2013-14 | K17: 2014-15 | L17: 2015-16 | M17: 2016-17
B18: ABS CPI index Mar qtr (old base) | C18: =+#REF! ->  | D18: =+#REF! ->  | E18: =+#REF! ->  | F18: =+#REF! ->  | G18: =+#REF! ->  | H18: =+#REF! -> 
B19: ABS CPI index Mar qtr (rebased index) | C19: =+#REF! ->  | D19: =+#REF! ->  | E19: =+#REF! ->  | F19: =+#REF! ->  | G19: =+#REF! ->  | H19: =+#REF! ->  | I19: =+#REF! ->  | J19: =+#REF! ->  | K19: =+#REF! ->  | L19: =+#REF! ->  | M19: =+#REF! -> 
B20: ABS CPI index Sept qtr (Old base) | C20: =+#REF! ->  | D20: =+#REF! ->  | E20: =+#REF! ->  | F20: =+#REF! ->  | G20: =+#REF! -> 
B21: ABS CPI index Sept qtr (rebased index) | C21: =+#REF! ->  | D21: =+#REF! ->  | E21: =+#REF! ->  | F21: =+#REF! ->  | G21: =+#REF! ->  | H21: =+#REF! ->  | I21: =+#REF! ->  | J21: =+#REF! ->  | K21: =+#REF! ->  | L21: =+#REF! ->  | M21: =+#REF! -> 
B22: Inflation rate (per cent) | D22: =D18/C18-1 ->  | E22: =E18/D18-1 ->  | F22: =F18/E18-1 ->  | G22: =G18/F18-1 ->  | H22: =H19/G19-1 ->  | I22: =I19/H19-1 ->  | J22: =J19/I19-1 ->  | K22: =K19/J19-1 ->  | L22: 0.0235 | M22: 0.0245
B23: Reconstructed cumulative index (2016-17=1) | C23: =D23/(1+D22) ->  | K23: 0.9536745438 | L23: 0.9760858956 | M23: 1
B27: 7.5.1 - The carryover amounts that arise from applying the EBSS during the current regulatory control period
B29: 7.5.1.1 - Opex allowance applicable to EBSS (EBSS target)
C30: $m, Jun 2007 | G30: $m, Jun 2012 | M30: $m, Jun 2017
C31: Previous period | G31: Current regulatory control period | M31: Previous period | Q31: Current regulatory control period
C32: =PRCP_y2 ->  | D32: =PRCP_y3 ->  | E32: =PRCP_y4 ->  | F32: =PRCP_y5 ->  | G32: =CRCP_y1 ->  | H32: =CRCP_y2 ->  | I32: =CRCP_y3 ->  | J32: =CRCP_y4 ->  | K32: =CRCP_y5 ->  | M32: =PRCP_y2 ->  | N32: =PRCP_y3 ->  | O32: =PRCP_y4 ->  | P32: =PRCP_y5 ->  | Q32: =CRCP_y1 ->  | R32: =CRCP_y2 ->  | S32: =CRCP_y3 ->  | T32: =CRCP_y4 ->  | U32: =CRCP_y5 -> 
B33: Total opex allowance | D33: 154227 | E33: 147589 | F33: 151914 | G33: 177936 | H33: 184712 | I33: 189464 | J33: 196549 | K33: 202292 | N33: =+D33/$C$19*$M$19 ->  | O33: =+E33/$C$19*$M$19 ->  | Q33: =+G33/$H$23 ->  | R33: =+H33/$H$23 -> 
B34: Approved excludable costs - allowance
B35: Equity raising costs | N35: =+D35/$C$19*$M$19 ->  | O35: =+E35/$C$19*$M$19 ->  | P35: =+F35/$C$19*$M$19 -> 
B36: Debt raising costs | D36: -2268.23 | E36: -2388.5 | F36: -2525.2 | G36: -3496.356373 | H36: -3760.880046 | I36: -3948.708258 | J36: -4048.357093 | K36: -4183.270595 | Q36: =+G36/$H$23 -> 
B37: Network support costs | D37: -22150 | E37: -8220 | F37: -8300
B38: Insurance & Self Insurance | D38: -5950.3 | E38: -6161.82 | F38: -6348.35 | G38: -8655.056345 | H38: -9183.829361 | I38: -9916.478119 | J38: -10446.40643 | K38: -11180.24257
B39: Capex Efficiencies | D39: -3194.78 | E39: -3194.78 | F39: -3194.78
B40: Network growth adjustment | G40: -695.1117764 | H40: -1738.804399 | I40: -2748.208889 | J40: -3674.246894 | K40: -4352.829785
B41: Capitalisation policy changes
B42: Movements in provisions related to opex | D42: -2274.620613 | E42: -2339.63454 | F42: -2449.724791 | G42: -714.49944 | H42: -751.29961 | I42: -819.9094085 | J42: -822.7901275 | K42: -854.2102505
B43: Opex associated with pass throughs
B44: Other adjustments or exclusions required by the EBSS
B45: Forecast opex for EBSS purposes | D45: =(D33+SUM(D35:D44)) -> 118389.0694 | E45: 125284.2655 | F45: 129095.9452 | G45: 164374.9761 | H45: 169277.1866 | I45: 172030.6953 | J45: 177557.1995 | K45: 181721.4468 | N45: =+SUM(N33:N44) -> 
B47: 7.5.1.2 - Actual and estimated opex applicable to EBSS
C48: $m, Actual | M48: $m, Jun 2017
C49: Previous period | G49: Current regulatory control period | M49: Previous period | Q49: Current regulatory control period
C50: =PRCP_y2 ->  | D50: =PRCP_y3 ->  | E50: =PRCP_y4 ->  | F50: =PRCP_y5 ->  | G50: =CRCP_y1 ->  | H50: =CRCP_y2 ->  | I50: =CRCP_y3 ->  | J50: =CRCP_y4 ->  | K50: =CRCP_y5 ->  | M50: =PRCP_y2 ->  | N50: =PRCP_y3 ->  | O50: =PRCP_y4 ->  | P50: =PRCP_y5 ->  | Q50: =CRCP_y1 ->  | R50: =CRCP_y2 ->  | S50: =CRCP_y3 ->  | T50: =CRCP_y4 ->  | U50: =CRCP_y5 -> 
B51: Total opex | D51: 151884 | E51: 150880 | F51: 160384 | G51: 167377.5967 | H51: 181016 | I51: 211260 | J51: 214028.2476 | N51: =+D51/F$21*$M$19 ->  | O51: =+E51/G$21*$M$19 -> 
B52: Approved excludable costs
B53: =B35 -> Equity raising costs
B54: =B36 -> Debt raising costs | D54: -320 | E54: -249 | F54: -265 | G54: -501 | H54: -500 | I54: -500 | J54: -1000 | N54: =+D54/F$21*$M$19 ->  | O54: =+E54/G$21*$M$19 ->  | P54: =+F54/H$21*$M$19 ->  | Q54: =+G54/I$21*$M$19 ->  | R54: =+H54/J$21*$M$19 ->  | S54: =+I54/K$21*$M$19 ->  | T54: =+J54/L$21*$M$19 -> 
B55: =B37 -> Network support costs | D55: -12718 | I55: -2644 | J55: -3540
B56: =B38 -> Insurance & Self Insurance | D56: -6713 | E56: -7344 | F56: -7596 | G56: -7844 | H56: -8153 | I56: -8373 | J56: -9544
B57: =+B39 -> Capex Efficiencies
B58: AEMC Levy | I58: -3790 | J58: -4100 | N58: =+D58/F$21*$M$19 -> 
B59: 500Kv Write Off | I59: -12054
B60: Remove non reg element of CMG | J60: -404
B61: Redundancy Work Load Driven | J61: -8398
B62: Redundancy Entitlement costs | J62: -1358
B63: =B40 -> Network growth adjustment
B64: =B41 -> Capitalisation policy changes
B65: =B42 -> Movements in provisions related to opex | D65: 540.9158774 | E65: -1086.166017 | F65: -1913 | G65: -14 | H65: -454 | I65: 260 | J65: 1490
B66: =B44 -> Other adjustments or exclusions required by the EBSS | N66: =+D66/D$21*$M$19 -> 
B67: Actual opex for EBSS purposes | D67: =D51+SUM(D53:D66) -> 132673.9159 | E67: 142200.834 | F67: 150610 | G67: 159018.5967 | H67: 171909 | I67: 184159 | J67: 187174.2476 | N67: =N51+SUM(N53:N66) ->  | O67: =O51+SUM(O53:O66) ->  | P67: =P51+SUM(P53:P66) ->  | Q67: =Q51+SUM(Q53:Q66) ->  | R67: =R51+SUM(R53:R66) -> 
J68: estimates | N68: base year | S68: base year
M69: =CONCATENATE("Incremental gain ($m, ",dms_FRCP_FinalYear_Num,")") -> 
Q70: =+(Q45-Q67)-(P45-P67)+(O45-O67) ->  | R70: =(R45-R67)-(Q45-Q67) ->  | S70: =(S45-S67)-(R45-R67) -> 
M72: Carryover
Q73: Current regulatory control period | V73: Forthcoming regulatory control period
Q74: =CONCATENATE("$m, real ",dms_DollarReal) -> 
Q75: =CRCP_y1 ->  | R75: =CRCP_y2 ->  | S75: =CRCP_y3 ->  | T75: =CRCP_y4 ->  | U75: =CRCP_y5 ->  | V75: =FRCP_y1 ->  | W75: =FRCP_y2 ->  | X75: =FRCP_y3 ->  | Y75: =FRCP_y4 ->  | Z75: =FRCP_y5 ->  | AA75: Total
M76: =CRCP_y1 ->  | R76: =$Q$70 ->  | S76: =$Q$70 ->  | V76: =$Q$70 -> 
M77: =CRCP_y2 ->  | S77: =$R$70 ->  | T77: =$R$70 ->  | W77: =$R$70 -> 
M78: =CRCP_y3 ->  | T78: =$S$70 ->  | U78: =$S$70 ->  | V78: =$S$70 ->  | X78: =$S$70 -> 
M79: =CRCP_y4 ->  | U79: =$T$70 ->  | V79: =$T$70 ->  | Y79: =$T$70 -> 
M80: =CRCP_y5 ->  | V80: =$U$70 -> 0 | W80: =$U$70 -> 0 | X80: 0 | Y80: 0 | Z80: =$U$70 -> 0
M81: =CONCATENATE("Total Carryover Amount") -> Total Carryover Amount | V81: =+SUM(V76:V80) ->  | W81: =+SUM(W77:W80) ->  | X81: =+SUM(X78:X80) ->  | Y81: =+SUM(Y79:Y80) ->  | Z81: =+SUM(Z80) -> 0 | AA81: =SUM(V81:Z81) -> 
M83: =CONCATENATE("PTRM inputs") -> PTRM inputs | V83: =V81 ->  | W83: =W81 ->  | X83: =X81 ->  | Y83: =Y81 ->  | Z83: =Z81 -> 0 | AA83: =SUM(V83:Z83) -> 
B85: 7.5.2 - Proposed forecast opex for the EBSS for the forthcoming regulatory control period
C86: Forthcoming regulatory control period
C87: =CONCATENATE("$m, real ",dms_DollarReal) -> 
C88: =FRCP_y1 ->  | D88: =FRCP_y2 ->  | E88: =FRCP_y3 ->  | F88: =FRCP_y4 ->  | G88: =FRCP_y5 -> 
B89: Forecast opex
B90: Less excluded costs
B91: < Enter category proposed for exclusion > eg. Debt raising costs | C91: 0 | D91: 0 | E91: 0 | F91: 0 | G91: 0
C92: 0 | D92: 0 | E92: 0 | F92: 0 | G92: 0
C93: 0 | D93: 0 | E93: 0 | F93: 0 | G93: 0
C94: 0 | D94: 0 | E94: 0 | F94: 0 | G94: 0
C95: 0 | D95: 0 | E95: 0 | F95: 0 | G95: 0
C96: 0 | D96: 0 | E96: 0 | F96: 0 | G96: 0
C97: 0 | D97: 0 | E97: 0 | F97: 0 | G97: 0
C98: 0 | D98: 0 | E98: 0 | F98: 0 | G98: 0
C99: 0 | D99: 0 | E99: 0 | F99: 0 | G99: 0
C100: 0 | D100: 0 | E100: 0 | F100: 0 | G100: 0
B101: Adjusted forecast opex | C101: =+C89-SUM(C91:C100) -> 0 | D101: 0 | E101: 0 | F101: 0 | G101: 0
